bitfinex-derivatives/quotes_ETHF0:USTF0_20250906
["timestamp","ask_amount","ask_price","bid_price","bid_amount"]
[1757125201321,0.5107,4313.3,4313.2,1.22974494]
[1757125201528,0.7162,4313.3,4313.2,1.22974494]
[1757125202028,1.31804608,4313.3,4313.2,1.22974494]
[1757125203427,1.31804608,4313.3,4313.2,1.01984494]
[1757125203624,5.54988608,4313.3,4313.2,0.28824494]
[1757125203828,0.3168,4312.9,4312.7,5.371]
[1757125204129,0.7162,4312.9,4312.8,0.52176182]
[1757125204331,1.31803434,4312.9,4312.8,0.28776182]
[1757125205332,1.31803434,4312.9,4312.8,0.57806182]
[1757125208430,1.31803434,4312.9,4312.8,0.78536182]
[1757125211027,1.31803434,4312.9,4312.8,0.99526182]
[1757125220335,0.60183434,4312.9,4312.8,1.22713182]
[1757125220839,4.45527555,4313.9,4312.8,4.70496182]
[1757125221037,3.9286,4313.9,4313.8,1.7411945]
[1757125221233,4.5313571,4313.9,4313.8,2.02895632]
[1757125221936,4.53118262,4313.9,4313.8,2.02895632]
[1757125223641,1.32338262,4313.9,4313.8,2.02895632]
[1757125224944,5.55519262,4313.9,4313.8,0.28776182]
[1757125225143,0.4098,4312.8,4312.7,0.2936]
[1757125225351,0.4098,4312.8,4312.4,3.2078]
[1757125225352,2.34167712,4312.8,4312.4,3.2078]
[1757125225555,0.6874,4312.5,4312.4,3.2078]
[1757125225847,2.06407712,4312.5,4312.1,0.2936]
[1757125226152,0.6874,4312.1,4312.0,0.8392]
[1757125228353,0.6874,4312.1,4312.0,1.0398]
[1757125229055,0.4098,4312.1,4312.0,1.0398]
[1757125234261,0.2017,4312.1,4312.0,1.0398]
[1757125234760,0.2789,4312.7,4312.1,0.2936]
[1757125234958,1.29238537,4312.6,4312.5,0.4889]
[1757125236868,0.60368537,4312.6,4312.5,1.8588945]
[1757125237071,0.4357,4313.1,4313.0,0.5136]
[1757125237372,0.4357,4313.1,4313.0,0.8072]
[1757125237669,1.24721217,4313.1,4313.0,0.8072]
[1757125241562,0.60341217,4313.1,4313.0,0.8072]
[1757125241763,0.60341217,4313.1,4313.0,0.5136]
[1757125241965,0.60341217,4313.2,4313.0,0.5136]
[1757125242172,1.01321217,4313.1,4313.0,0.5136]
[1757125242471,1.01321217,4313.1,4313.0,0.8072]
[1757125242767,1.29211217,4313.1,4313.0,0.8072]
[1757125243372,1.01321217,4313.1,4313.0,0.8072]
[1757125246976,1.29211217,4313.1,4313.0,0.8072]
[1757125248376,0.4098,4313.0,4312.9,1.4475945]
[1757125248572,1.01321217,4313.0,4312.9,1.4475945]
[1757125248876,1.01321217,4313.0,4312.9,1.7632945]
[1757125249276,0.80511217,4313.0,4312.9,1.7632945]
[1757125249680,0.60341217,4313.0,4312.9,1.7632945]
[1757125250579,0.6821,4313.6,4313.5,0.6412]
[1757125250779,1.28535339,4313.6,4313.5,0.6412]
[1757125251877,1.00855339,4313.6,4313.5,0.3255]
[1757125252177,1.28535339,4313.6,4313.5,0.6412]
[1757125255780,1.28535339,4313.6,4313.5,0.854]
[1757125256886,1.28535339,4313.6,4313.5,0.5223]
[1757125257089,1.28535339,4313.6,4313.5,0.3157]
[1757125259487,1.28535339,4313.6,4313.5,0.5223]
[1757125259685,1.51935339,4313.6,4313.5,0.6412]
[1757125259885,1.00855339,4313.6,4313.5,0.854]
[1757125261488,1.28535339,4313.6,4313.5,0.854]
[1757125262493,1.00855339,4313.6,4313.5,0.854]
[1757125264098,0.60325339,4313.6,4313.5,0.854]
[1757125264295,1.00855339,4313.6,4313.5,0.854]
[1757125264490,1.28535339,4313.6,4313.5,0.854]
[1757125264888,1.00855339,4313.6,4313.5,0.854]
[1757125266289,0.81375339,4313.6,4313.5,0.854]
[1757125269593,0.81375339,4313.6,4312.5,0.1189]
[1757125269594,0.4053,4313.2,4312.7,3.2078]
[1757125269795,0.4053,4312.2,4312.1,0.5223]
[1757125270000,0.6821,4312.2,4312.1,0.7351]
[1757125270201,0.4053,4312.2,4312.1,0.7351]
[1757125276700,0.6821,4312.2,4312.1,0.7351]
[1757125277007,1.00869022,4312.2,4312.1,0.7351]
[1757125277306,0.4053,4312.2,4312.1,0.7351]
[1757125278700,0.6822,4312.2,4312.1,0.7351]
[1757125279504,0.5244,4311.5,4311.4,3.4004]
[1757125279718,0.8191,4311.5,4311.4,0.1926]
[1757125281215,0.6977,4311.5,4311.4,0.3864]
[1757125287619,0.6977,4311.5,4311.4,0.6797]
[1757125288412,0.1214,4312.0,4311.4,0.6797]
[1757125288413,0.403,4311.9,4311.8,0.3864]
[1757125288618,0.403,4311.9,4311.8,0.6797]
[1757125288619,0.1995,4311.9,4311.8,0.6797]
[1757125288814,0.6977,4311.9,4311.8,0.6797]
[1757125291916,0.1995,4311.9,4311.8,0.6797]
[1757125292121,3.5025,4312.1,4312.0,0.1217]
[1757125292322,4.30212097,4312.1,4312.0,0.8014]
[1757125294025,4.50562097,4312.1,4312.0,0.6797]
[1757125295324,3.9055,4312.1,4312.0,0.6797]
[1757125295520,4.50605537,4312.1,4312.0,0.6797]
[1757125300518,4.50605537,4312.1,4312.0,0.4859]
[1757125303126,4.50770238,4312.1,4312.0,0.4859]
[1757125305330,0.6977,4311.7,4311.6,0.6797]
[1757125305527,1.29990238,4311.7,4311.6,0.91162]
[1757125305830,0.6977,4311.3,4311.1,5.371]
[1757125306028,0.2947,4311.2,4310.9,0.234]
[1757125306233,0.6977,4311.0,4310.9,0.6204]
[1757125306830,0.6977,4311.0,4310.9,0.9137]
[1757125309431,0.6977,4311.0,4310.9,2.15654563]
[1757125311233,0.6977,4311.0,4310.9,0.9137]
[1757125311535,0.1995,4311.0,4310.9,0.9137]
[1757125312635,0.5077,4311.3,4311.2,0.3951]
[1757125312836,1.31388721,4311.3,4311.2,0.7099]
[1757125315441,1.31388721,4311.3,4310.9,0.234]
[1757125315640,0.711,4311.1,4311.0,0.5079]
[1757125316042,1.31385096,4311.1,4311.0,0.5079]
[1757125316541,0.711,4310.9,4310.8,0.7099]
[1757125316842,0.711,4310.9,4310.8,0.9439]
[1757125319846,0.5077,4310.9,4310.8,0.9439]
[1757125320141,0.2131,4310.9,4310.8,0.9439]
[1757125321034,0.5077,4310.9,4310.8,0.9439]
[1757125321546,0.711,4310.9,4310.8,0.9439]
[1757125322141,0.711,4310.9,4310.8,0.5079]
[1757125322344,0.2946,4310.8,4310.3,0.3148]
[1757125322546,0.711,4310.4,4310.3,0.3148]
[1757125322844,0.711,4310.4,4310.3,0.9439]
[1757125323746,0.711,4310.4,4310.3,0.7099]
[1757125323940,0.4164,4310.4,4310.2,3.2078]
[1757125324247,0.711,4310.3,4310.2,3.7157]
[1757125324446,0.711,4310.3,4310.2,4.1517]
[1757125326751,0.711,4310.3,4310.2,0.9439]
[1757125327645,0.711,4310.3,4310.2,0.7419]
[1757125328440,0.711,4310.3,4310.2,0.9439]
[1757125333050,0.2131,4310.3,4310.2,0.9439]
[1757125336248,0.5077,4310.8,4310.7,0.3951]
[1757125336452,0.2131,4310.8,4310.7,0.7099]
[1757125337060,0.5077,4310.8,4310.7,0.7099]
[1757125337259,0.2131,4310.8,4310.7,0.7099]
[1757125337460,0.2946,4311.0,4310.7,0.7099]
[1757125337663,0.5077,4311.3,4311.2,0.3951]
[1757125337864,1.312569,4311.3,4311.2,0.7099]
[1757125338556,1.312569,4311.3,4311.2,0.5079]
[1757125338757,1.312569,4311.3,4310.6,1.24284563]
[1757125338959,0.7131,4310.8,4310.7,0.7387]
[1757125339158,0.7131,4310.8,4310.7,0.943]
[1757125339365,0.7131,4310.8,4310.7,0.7387]
[1757125339765,0.7131,4310.8,4310.7,0.943]
[1757125340866,0.7131,4310.8,4310.7,0.7387]
[1757125341159,0.2925,4310.7,4310.2,1.05273679]
[1757125341360,0.7131,4310.3,4310.2,1.24643679]
[1757125341561,0.7131,4310.3,4310.2,1.68473679]
[1757125341764,0.7131,4310.3,4310.2,1.99573679]
[1757125342560,0.7131,4310.3,4310.2,0.7387]
[1757125344973,0.7131,4310.3,4309.6,0.311]
[1757125344974,0.4206,4309.7,4309.6,0.311]
[1757125345176,0.7131,4309.7,4309.6,0.545]
[1757125345375,0.7131,4309.7,4309.6,0.7387]
[1757125347974,0.7131,4309.7,4309.6,0.943]
[1757125348670,0.7131,4310.3,4310.2,0.398]
[1757125348976,1.31444435,4310.3,4310.2,0.709]
[1757125349773,0.8303,4310.0,4309.9,0.545]
[1757125349974,1.43164435,4310.0,4309.9,0.7387]
[1757125350573,1.43164435,4310.0,4309.9,0.5047]
[1757125350778,1.31444435,4310.0,4309.9,0.709]
[1757125356777,1.43164435,4310.0,4309.9,0.709]
[1757125358676,1.31444435,4310.0,4309.9,0.709]
[1757125364888,0.7131,4310.0,4309.9,0.709]
[1757125367891,0.7131,4310.0,4309.9,1.76173679]
[1757125368091,0.5047,4310.0,4309.9,1.76173679]
[1757125368478,0.3162,4310.3,4310.0,0.4175]
[1757125368787,0.5287,4310.3,4310.2,0.7011]
[1757125368986,1.3451088,4310.3,4310.2,0.7011]
[1757125375096,1.3451088,4310.3,4310.2,0.4991]
[1757125375396,1.3451088,4310.3,4310.2,0.204]
[1757125375696,1.3451088,4310.3,4309.8,1.05273679]
[1757125375889,0.4266,4309.9,4309.8,1.75383679]
[1757125376089,1.3451088,4309.9,4309.8,1.75383679]
[1757125377694,1.0289088,4309.9,4309.8,1.75383679]
[1757125377890,0.8148088,4309.9,4309.8,1.75383679]
[1757125379193,1.1310088,4309.9,4309.8,1.75383679]
[1757125379591,1.3451088,4309.9,4309.8,1.75383679]
[1757125380494,0.6023088,4309.9,4309.8,1.75383679]
[1757125380695,0.5287,4310.5,4310.4,0.7011]
[1757125381091,0.7428,4310.5,4310.4,0.7011]
[1757125381284,1.34629134,4310.5,4310.4,0.7011]
[1757125382489,0.4266,4310.2,4310.1,0.5291]
[1757125382690,0.7428,4310.2,4310.1,0.5291]
[1757125382994,1.34629134,4310.2,4310.1,0.2951]
[1757125383197,1.34629134,4310.2,4310.1,0.4991]
[1757125383495,0.4266,4309.9,4309.8,0.2951]
[1757125383682,1.34629157,4309.9,4309.8,0.5291]
[1757125383890,1.34629157,4309.9,4309.8,0.7331]
[1757125384085,0.7428,4309.9,4309.8,0.9351]
[1757125386196,0.7428,4309.9,4309.8,0.7011]
[1757125387697,1.34608562,4309.9,4309.8,0.7011]
[1757125389099,1.34608562,4309.9,4309.8,0.4991]
[1757125389489,0.8685,4309.5,4309.4,3.7069]
[1757125389692,1.47168274,4309.5,4309.4,3.2078]
[1757125390495,1.47168274,4309.5,4309.3,0.234]
[1757125390496,1.15548274,4309.5,4309.1,0.5291]
[1757125390695,1.34586795,4309.4,4309.3,0.7011]
[1757125391099,1.34586795,4309.4,4309.3,2.04160461]
[1757125391499,1.34586795,4309.4,4309.3,0.98886782]
[1757125391900,1.34586795,4309.4,4309.3,0.28776782]
[1757125393798,1.34586795,4309.4,4309.3,0.78686782]
[1757125394899,1.34586795,4309.4,4309.3,0.98886782]
[1757125395699,4.26053679,4309.9,4309.4,0.7011]
[1757125395700,0.2125,4309.5,4309.4,0.7011]
[1757125395894,1.13119487,4309.5,4309.4,1.22286782]
[1757125396097,1.34529487,4309.5,4309.4,1.22286782]
[1757125396804,1.47099487,4309.5,4309.4,0.49176782]
[1757125396996,1.47099487,4309.5,4309.4,0.52176782]
[1757125397805,1.47099487,4309.5,4309.4,1.02086782]
[1757125398500,0.60249487,4309.5,4309.4,1.22286782]
[1757125398705,1.10139487,4309.5,4309.4,1.22286782]
[1757125400007,0.4989,4309.5,4309.4,1.22286782]
[1757125400499,1.10119769,4309.5,4309.4,1.22286782]
[1757125401507,0.80589769,4309.5,4309.4,1.22286782]
[1757125401701,0.4989,4309.5,4309.4,1.22286782]
[1757125402005,0.2953,4309.7,4309.4,1.22286782]
[1757125402208,0.4989,4309.7,4309.6,0.6913]
[1757125402407,0.4989,4309.7,4309.6,0.97906782]
[1757125402607,1.10126937,4309.7,4309.6,0.97906782]
[1757125404007,1.10126937,4309.7,4309.6,0.97928578]
[1757125405410,1.31466937,4309.7,4309.6,0.97928578]
[1757125412621,0.80596937,4309.7,4309.6,0.97928578]
[1757125413013,1.31466937,4309.7,4309.6,0.97928578]
[1757125421219,1.31466937,4309.7,4309.6,0.28798578]
[1757125422022,1.31466937,4309.7,4309.6,0.57798578]
[1757125423825,1.31466937,4309.7,4309.6,0.78358578]
[1757125424025,1.31466937,4309.7,4309.6,0.97928578]
[1757125431628,1.31466937,4309.7,4309.6,0.49358578]
[1757125431826,1.31466937,4309.7,4309.6,1.01008578]
[1757125442438,1.31466937,4309.7,4309.6,0.79988578]
[1757125442638,1.31466937,4309.7,4309.6,1.03288578]
[1757125443341,1.31466937,4309.7,4309.6,1.24308578]
[1757125448641,1.31466937,4309.7,4309.6,0.28798578]
[1757125448944,1.31466937,4309.7,4309.6,0.52098578]
[1757125449132,1.31466937,4309.7,4309.6,1.03848578]
[1757125450545,1.31466937,4309.7,4309.6,1.24868578]
[1757125451441,1.31466937,4309.7,4309.6,0.28798578]
[1757125451642,1.54670937,4309.7,4309.2,0.233]
[1757125451838,0.7081,4309.3,4309.2,0.233]
[1757125452045,1.31046937,4309.3,4309.2,0.233]
[1757125452445,1.31046937,4309.3,4309.2,0.7505]
[1757125453241,0.828,4309.0,4308.9,0.5175]
[1757125453442,1.43036937,4309.0,4308.9,0.7505]
[1757125455948,1.43036937,4309.0,4308.9,0.9607]
[1757125457447,0.828,4309.0,4308.9,0.9607]
[1757125458051,1.43140754,4309.0,4308.9,0.9607]
[1757125458251,0.828,4309.0,4308.9,0.7277]
[1757125458546,0.828,4309.0,4308.9,0.9607]
[1757125459049,1.43134717,4309.0,4308.9,0.7505]
[1757125460155,0.828,4309.0,4308.9,0.7505]
[1757125463353,0.828,4309.0,4308.9,0.5175]
[1757125463547,0.828,4309.0,4308.9,0.7505]
[1757125463754,0.7081,4309.0,4308.9,0.9468]
[1757125463950,0.8376,4309.0,4308.8,0.233]
[1757125464151,0.7124,4308.9,4308.8,0.5297]
[1757125464463,0.7124,4308.9,4308.8,0.7389]
[1757125466160,0.7124,4308.9,4308.8,0.5059]
[1757125466362,0.7124,4308.9,4308.8,0.7389]
[1757125468065,0.7124,4308.9,4308.8,0.5059]
[1757125468263,0.7124,4308.9,4308.7,0.233]
[1757125468461,1.76601875,4308.9,4308.6,0.5297]
[1757125468661,0.4009,4308.7,4308.6,0.5297]
[1757125468859,0.7124,4308.7,4308.6,0.5297]
[1757125469054,0.7124,4308.7,4308.6,0.7389]
[1757125469760,0.4009,4308.7,4308.3,3.5045]
[1757125469967,0.7124,4308.4,4308.3,3.5045]
[1757125470160,0.7124,4308.4,4308.3,3.9467]
[1757125470365,0.7124,4308.4,4308.3,4.143]
[1757125471162,0.7124,4308.4,4308.3,3.91]
[1757125471368,0.7124,4308.4,4308.3,0.7389]
[1757125471666,0.7124,4308.4,4308.3,0.9352]
[1757125471862,0.7124,4308.4,4308.3,0.7022]
[1757125472170,0.7124,4308.4,4308.3,0.9352]
[1757125474263,0.7124,4308.4,4308.3,0.5059]
[1757125474469,1.3159686,4308.4,4308.3,0.5059]
[1757125475873,1.3159686,4308.4,4308.3,0.7022]
[1757125476063,0.7124,4308.4,4308.3,0.7022]
[1757125477758,1.31586271,4308.4,4308.3,0.7022]
[1757125477964,0.4009,4308.2,4308.1,0.233]
[1757125478372,1.31580484,4308.2,4308.1,0.7389]
[1757125479269,1.31580484,4308.2,4308.0,0.233]
[1757125479571,1.31580484,4308.2,4308.0,0.5297]
[1757125479572,0.3115,4308.1,4308.0,0.5297]
[1757125479770,0.3115,4308.1,4308.0,0.7389]
[1757125479971,0.7124,4308.1,4308.0,0.7389]
[1757125480768,0.7124,4308.1,4307.8,3.2078]
[1757125480769,0.4009,4308.1,4307.8,3.2078]
[1757125480970,0.7124,4307.6,4307.5,0.8232]
[1757125481170,0.7124,4307.6,4307.5,1.0562]
[1757125483166,0.7124,4307.6,4307.5,0.8232]
[1757125483372,0.7124,4307.6,4307.5,1.0562]
[1757125484176,0.7124,4307.6,4307.5,0.8232]
[1757125484378,0.7124,4307.6,4307.5,1.0562]
[1757125486366,0.3115,4307.9,4307.5,1.0562]
[1757125486676,0.5098,4307.9,4307.8,0.7022]
[1757125488074,0.4009,4308.3,4308.2,0.2092]
[1757125488273,1.31549354,4308.3,4307.8,0.233]
[1757125488470,1.31219354,4308.2,4308.1,0.5278]
[1757125488974,0.7091,4308.2,4308.1,0.7329]
[1757125490174,0.3054,4308.1,4307.8,0.233]
[1757125490381,0.7091,4307.9,4307.8,0.9659]
[1757125495267,1.17881875,4308.5,4307.8,0.6494]
[1757125495578,1.31248998,4308.4,4308.3,0.2113]
[1757125495767,1.31248998,4308.4,4308.1,0.233]
[1757125495973,1.31248998,4308.3,4308.2,0.5278]
[1757125496682,1.31248998,4308.3,4308.2,0.7329]
[1757125498680,0.3054,4308.2,4308.1,0.233]
[1757125498879,1.31248998,4308.2,4308.1,0.5495]
[1757125499081,1.31248998,4308.2,4308.1,0.7608]
[1757125499480,1.31248998,4308.2,4308.1,0.9659]
[1757125499679,0.80998998,4308.2,4308.1,0.9659]
[1757125499877,1.11538998,4308.2,4308.1,0.9659]
[1757125500279,1.31248998,4308.2,4308.1,0.9659]
[1757125500475,5.23920999,4308.2,4307.2,3.2078]
[1757125500689,1.76271875,4307.4,4307.3,0.5278]
[1757125501182,1.76271875,4307.4,4306.8,32.21785412]
[1757125501183,0.4037,4306.9,4306.8,0.5278]
[1757125501376,0.7091,4306.9,4306.8,0.5278]
[1757125501776,0.7091,4306.9,4306.8,0.7329]
[1757125501972,0.4037,4306.9,4306.8,0.7329]
[1757125502175,0.7091,4306.9,4306.8,0.3165]
[1757125502375,1.3120871,4306.9,4306.8,0.7329]
[1757125503083,0.7091,4306.9,4306.8,0.5278]
[1757125503281,0.7091,4306.9,4306.8,0.3165]
[1757125503486,0.4037,4306.9,4306.8,0.7329]
[1757125504889,0.7091,4306.9,4306.8,0.3165]
[1757125505290,0.7091,4306.9,4306.8,0.5278]
[1757125505590,0.7091,4306.9,4306.8,0.7329]
[1757125506096,0.7091,4306.9,4306.8,0.3165]
[1757125506387,0.7091,4306.9,4306.8,0.5278]
[1757125508886,0.2066,4306.9,4306.8,0.7329]
[1757125509191,0.3054,4307.2,4306.8,0.7329]
[1757125509487,0.80907664,4307.1,4307.0,0.85]
[1757125509691,1.31157664,4307.1,4307.0,0.85]
[1757125509888,1.31157664,4307.1,4307.0,0.5278]
[1757125510290,0.7091,4307.1,4307.0,0.3165]
[1757125510783,0.7091,4307.1,4307.0,0.5278]
[1757125512886,0.7091,4307.1,4307.0,0.3165]
[1757125513082,0.7091,4307.1,4306.5,0.121]
[1757125513993,0.7091,4307.1,4306.6,0.3165]
[1757125514195,0.7091,4306.6,4306.5,0.3323]
[1757125514692,0.3054,4307.0,4306.5,0.8539]
[1757125514895,0.7091,4307.2,4307.1,0.2113]
[1757125515097,1.31128184,4307.2,4307.1,0.5278]
[1757125515487,1.31128184,4307.2,4307.1,0.3165]
[1757125515692,1.31128184,4307.2,4307.1,0.5278]
[1757125516596,1.31128184,4307.2,4306.6,0.3165]
[1757125516799,0.7091,4306.7,4306.6,0.5278]
[1757125518097,0.7091,4306.7,4306.6,0.3165]
[1757125518296,0.7091,4306.7,4306.2,3.2078]
[1757125518486,0.7097,4306.3,4306.2,3.9054]
[1757125519892,0.4011,4306.3,4306.2,3.9054]
[1757125520200,0.5172,4306.3,4306.2,3.9054]
[1757125520694,0.1161,4306.3,4306.2,3.9054]
[1757125525006,0.7097,4307.3,4307.2,0.6976]
[1757125525197,1.31205895,4307.3,4307.2,0.4999]
[1757125525507,1.31205895,4307.3,4307.2,0.3063]
[1757125526202,1.00345895,4307.3,4306.9,0.3063]
[1757125526398,0.4011,4306.9,4306.8,3.4014]
[1757125526604,0.7097,4306.9,4306.8,3.4014]
[1757125526999,0.7097,4306.9,4306.8,3.7077]
[1757125527403,1.31251806,4306.9,4306.8,0.4999]
[1757125528095,1.31286508,4306.9,4306.8,0.4999]
[1757125528301,1.31286508,4306.9,4306.8,0.6976]
[1757125528902,0.60316508,4306.9,4306.8,0.6976]
[1757125529104,3.6379,4307.8,4307.7,0.3913]
[1757125529298,4.31622286,4307.8,4307.7,0.6976]
[1757125529694,4.52122286,4307.8,4307.7,0.6976]
[1757125530999,4.00762286,4307.8,4307.7,0.6976]
[1757125531206,1.31342286,4307.8,4307.7,0.6976]
[1757125532602,1.31342286,4307.8,4307.7,0.4999]
[1757125532802,0.1961,4307.2,4307.1,0.4999]
[1757125533009,0.1961,4307.2,4307.1,0.9316]
[1757125533404,0.7097,4307.5,4307.4,0.3913]
[1757125533604,0.7097,4307.5,4307.4,0.6976]
[1757125534207,0.7097,4307.5,4307.4,0.4999]
[1757125534906,1.30789701,4307.5,4307.4,0.4999]
[1757125539018,0.99929701,4307.5,4307.4,0.6976]
[1757125539319,0.79429701,4307.5,4307.4,0.6976]
[1757125540321,1.30789701,4307.5,4307.4,0.6976]
[1757125541821,0.99929701,4307.5,4307.4,0.6976]
[1757125542222,1.30789701,4307.5,4307.4,0.6976]
[1757125547532,0.59819701,4307.5,4307.4,0.98319965]
[1757125547734,0.1961,4307.6,4307.5,0.8254]
[1757125547937,0.59807037,4307.6,4307.5,0.80469965]
[1757125548133,3.2078,4308.0,4307.5,0.80469965]
[1757125548134,3.4039,4308.0,4307.9,0.3913]
[1757125548327,4.31316607,4308.0,4307.9,0.6976]
[1757125548631,1.31666607,4308.0,4307.9,0.6976]
[1757125551636,0.59806607,4308.0,4307.9,0.6976]
[1757125551836,3.2078,4308.5,4308.0,0.4248]
[1757125552040,3.9289,4308.5,4308.4,0.5023]
[1757125552240,4.52716267,4308.5,4308.4,0.5023]
[1757125552641,4.52716267,4308.5,4308.4,0.7111]
[1757125553235,4.00466267,4308.5,4308.4,0.7111]
[1757125553744,0.79686267,4308.5,4308.4,0.7111]
[1757125553943,1.10806267,4308.5,4308.4,0.7111]
[1757125554242,1.31936267,4308.5,4308.4,0.7111]
[1757125556446,1.3192817,4308.5,4308.4,0.7111]
[1757125557443,1.3192817,4308.5,4308.4,0.5023]
[1757125567849,1.4442817,4308.5,4308.0,0.1224]
[1757125568156,1.4442817,4308.5,4308.1,0.28634012]
[1757125568157,0.7211,4308.2,4308.1,0.28634012]
[1757125568357,0.4099,4307.9,4307.8,0.3024]
[1757125568653,0.7211,4307.9,4307.8,0.58878277]
[1757125569950,0.7211,4307.9,4307.8,0.78868277]
[1757125572755,1.31915839,4307.9,4307.8,0.78868277]
[1757125574659,1.31915839,4307.9,4307.8,0.99748277]
[1757125578360,1.31915839,4307.9,4307.8,0.58878277]
[1757125578859,1.31915839,4307.9,4307.8,0.99398277]
[1757125581463,0.59805839,4307.9,4307.8,0.99398277]
[1757125582063,0.59805839,4307.9,4307.8,1.22611277]
[1757125582264,3.6082,4308.4,4308.3,0.4052]
[1757125582465,4.52539591,4308.4,4308.3,1.00168277]
[1757125582968,4.52539591,4308.4,4308.3,1.00285161]
[1757125583159,4.52539591,4308.4,4308.3,0.59765161]
[1757125583360,1.31759591,4308.4,4308.3,0.79135161]
[1757125583862,1.31759591,4308.4,4308.3,1.00285161]
[1757125585570,1.31759591,4308.4,4308.3,0.79135161]
[1757125587474,0.99899591,4308.4,4308.3,1.00285161]
[1757125588070,1.31759591,4308.4,4308.3,1.00285161]
[1757125589366,1.31759591,4308.4,4308.3,0.28755161]
[1757125589572,1.31759591,4308.4,4308.3,0.59765161]
[1757125592177,1.31759591,4308.4,4308.3,0.79135161]
[1757125597990,1.31759591,4308.4,4308.3,0.28755161]
[1757125598980,1.31759591,4308.4,4308.3,0.59765161]
[1757125599180,2.37166102,4308.4,4308.3,0.59765161]
[1757125601378,2.37166102,4308.4,4308.3,0.79135161]
[1757125604691,2.37166102,4308.4,4308.3,1.00285161]
[1757125606890,1.31759591,4308.4,4308.3,1.00285161]
[1757125611594,1.31759591,4308.4,4308.3,1.00466422]
[1757125612992,2.37166102,4308.4,4308.3,0.59946422]
[1757125613493,2.37166102,4308.4,4308.3,0.80736422]
[1757125615694,2.37166102,4308.4,4308.3,1.00826422]
[1757125623497,0.59859591,4308.4,4308.3,1.00826422]
[1757125623798,0.59859591,4308.4,4308.3,5.47337421]
[1757125624099,3.2078,4308.9,4308.8,0.7048]
[1757125624300,3.80846224,4308.9,4308.8,0.99416422]
[1757125625294,0.60066224,4308.9,4308.8,0.99416422]
[1757125628000,0.60066224,4308.9,4308.8,1.22716422]
[1757125628194,0.3117,4309.2,4308.8,1.22716422]
[1757125628400,0.212,4309.0,4308.9,0.99416422]
[1757125628599,0.81152744,4309.0,4308.9,0.99416422]
[1757125630605,0.59952744,4309.0,4308.9,0.99416422]
[1757125631806,3.2078,4309.4,4308.9,0.99416422]
[1757125632005,3.6293,4309.4,4309.3,0.7048]
[1757125632206,4.22847071,4309.4,4309.3,0.7048]
[1757125632402,4.54017071,4309.4,4309.3,0.7048]
[1757125632608,3.80697071,4309.4,4309.3,0.99130729]
[1757125632799,3.2078,4309.4,4309.3,0.99130729]
[1757125634204,3.2078,4309.4,4309.3,1.22430729]
[1757125634702,0.3117,4309.7,4309.3,1.22430729]
[1757125634910,0.212,4309.4,4309.3,0.9378]
[1757125635098,0.212,4309.4,4309.3,1.22414814]
[1757125636409,0.212,4309.6,4309.5,0.8216]
[1757125636802,0.81064669,4309.6,4309.5,0.8216]
[1757125637004,0.212,4309.6,4309.5,0.8216]
[1757125637199,1.36576511,4309.9,4309.5,0.8216]
[1757125637415,0.59857195,4309.8,4309.7,0.4088]
[1757125637601,0.7332,4309.8,4309.7,0.7048]
[1757125641408,3.2078,4310.1,4309.7,0.7048]
[1757125641714,3.9241,4310.1,4310.0,0.8397]
[1757125641914,4.52233045,4310.1,4310.0,0.7153]
[1757125642113,4.52233045,4310.1,4310.0,0.5082]
[1757125645013,1.31453045,4310.1,4310.0,0.5082]
[1757125649725,1.31453045,4310.1,4310.0,0.2947]
[1757125649925,1.31453045,4310.1,4309.6,0.2947]
[1757125650127,0.5043,4309.7,4309.6,0.7153]
[1757125650820,0.5043,4309.7,4309.6,0.5082]
[1757125650821,0.7163,4309.7,4309.6,0.5082]
[1757125651620,3.2078,4310.1,4309.6,0.7153]
[1757125651926,2.9107763,4312.2,4309.4,0.233]
[1757125651927,3.4201,4310.6,4310.5,0.8397]
[1757125652125,4.52251849,4310.6,4310.5,0.8397]
[1757125655219,1.31471849,4310.6,4310.5,0.8397]
[1757125657431,0.292,4311.0,4310.5,0.83128841]
[1757125657730,0.2123,4310.8,4310.7,0.7153]
[1757125657934,0.81099098,4310.8,4310.7,0.7153]
[1757125658730,1.10299098,4310.8,4310.7,0.7153]
[1757125659431,0.81099098,4310.8,4310.7,0.7153]
[1757125659928,3.2078,4311.2,4310.7,0.70683079]
[1757125660131,0.8109478,4311.1,4311.0,0.8397]
[1757125660926,1.1029478,4311.1,4311.0,0.8397]
[1757125661329,0.5043,4311.1,4311.0,0.8397]
[1757125661731,0.7163,4311.1,4311.0,0.6326]
[1757125661932,0.7163,4311.1,4311.0,0.2947]
[1757125662332,0.7163,4311.1,4311.0,0.5082]
[1757125663633,0.7163,4311.1,4311.0,0.7153]
[1757125668837,0.7163,4311.1,4311.0,0.8405]
[1757125670541,0.2123,4311.1,4311.0,0.8405]
[1757125670837,0.5026,4311.1,4311.0,0.8405]
[1757125671037,0.7022,4311.1,4311.0,0.8405]
[1757125674744,0.7022,4311.1,4311.0,0.2947]
[1757125674946,1.30076881,4311.1,4311.0,0.2947]
[1757125675239,1.30076881,4311.1,4311.0,0.4879]
[1757125676445,1.30076881,4311.1,4311.0,0.6848]
[1757125676646,1.30076881,4311.1,4311.0,0.81]
[1757125682952,1.30014813,4311.1,4311.0,0.81]
[1757125684546,0.59794813,4311.1,4311.0,0.81]
[1757125684952,3.8982,4311.7,4311.6,0.1932]
[1757125685151,4.49638697,4311.7,4311.6,0.485]
[1757125687059,4.49638697,4311.7,4311.6,0.6819]
[1757125688954,4.49638697,4311.7,4311.6,0.2918]
[1757125691355,4.49638697,4311.7,4311.6,0.57795834]
[1757125694867,4.49638697,4311.7,4311.6,0.57791797]
[1757125695266,1.28858697,4311.7,4311.6,0.57791797]
[1757125697174,1.28858697,4311.7,4311.6,0.2918]
[1757125697972,1.28858697,4311.7,4311.4,0.233]
[1757125698165,0.233,4312.1,4311.4,0.233]